[Event "ESP-chT Honor Division 2022"]
[Site "Linares"]
[Date "2022.09.23"]
[Round "7.13"]
[White "Cheparinov, Ivan"]
[Black "Harikrishna, Pentala"]
[Result "1/2-1/2"]
[ECO "C84"]
[WhiteElo "2686"]
[BlackElo "2716"]
[Annotator "TA"]
[PlyCount "75"]
[EventDate "2022.09.17"]
[EventType "team-tourn"]
[EventCountry "ESP"]
[SourceTitle "playchess.com"]
[Source "ChessBase"]
[SourceQuality "1"]
[TimeControl "5400+30"]

{[%evp 30,75,4,0,0,0,21,14,44,42,26,51,64,58,59,22,20,21,28,18,25,0,0,0,0,0,0,-15,-19,-6,-6,-13,-1,-7,0,0,0,0,0,0,0,0,0,0,0,-4,0,0]} 1. e4 {[%emt 0:00:03]} e5 {[%emt 0:00:06]} 2. Nf3 {[%emt 0:00:04]} Nc6 {[%emt 0:00:04]} 3. Bb5 {[%emt 0:00:04]} a6 {[%emt 0:00:06]} 4. Ba4 {[%emt 0:00:05]} Nf6 {[%emt 0:00:07]} 5. O-O {[%emt 0:00:06]} Be7 {[%emt 0:00:06]} 6. d3 {[%emt 0:00:08]} b5 {[%emt 0:00:05]} 7. Bb3 {[%emt 0:00:04]} d6 {[%emt 0:00:34]} 8. c3 {[%emt 0:00:33]} O-O {[%emt 0:02:57]} 9. h3 {[%emt 0:00:16]} Bb7 {[%emt 0:03:49]} 10. Re1 {[%emt 0:00:21]} h6 {[%emt 0:00:12]} 11. Nbd2 {[%emt 0:00:23]} Re8 {[%emt 0:00:57]} 12. Nf1 {[%emt 0:00:14]} Bf8 {[%emt 0:01:21]} 13. Ng3 {[%emt 0:00:11]} Na5 {[%emt 0:01:28]} 14. Bc2 {[%emt 0:00:19]} c5 {[%emt 0:01:28]} 15. d4 {[%emt 0:00:19]} cxd4 {[%emt 0:03:44]} 16. cxd4 {[%emt 0:00:35]} exd4 {[%emt 0:01:33] C92: Closed Ruy Lopez: 9...Be6, Karpov and Flohr-Zaitsev Variations.} 17. Nxd4 {[%emt 0:01:06]} Rc8 {[%emt 0:02:06]} 18. b3 {[%emt 0:00:29]} d5 {[%emt 0:01:40][%cal Rd5e4]} 19. e5 {[%emt 0:01:02]} Ne4 {[%emt 0:00:05]} 20. Bf4 {[%emt 0:00:58]} Nc6 {[%emt 0:02:29]} 21. Nxc6 {[%emt 0:03:04]} Bxc6 {[%emt 0:00:07]} 22. Nf5 {[%emt 0:05:16]} (22. Qf3 $5 {[%cal Rg3e4]}) 22... Bd7 {[%emt 0:02:23]} 23. Bxe4 {[%emt 0:11:29]} dxe4 {[%emt 0:00:09] [#]} 24. Ng3 $146 {[%emt 0:07:37]} ({Predecessor:} 24. Nd6 Bxd6 25. Qxd6 g5 26. Be3 Rc6 27. Qd5 Qc7 28. Red1 Bc8 29. Rac1 Bb7 30. Rxc6 Bxc6 {½-½ (41) Kraft,D (2477)-Karachurin,S (2490) ICCF email 2015}) 24... Bc6 {[%emt 0:04:57]} ({Resist} 24... g5 {[#]} 25. Nxe4 $1 Bg7 26. Bg3 $16) 25. Nxe4 {[%emt 0:01:33]} (25. Qg4 {feels hotter.} Bd7 26. Qh5 g6 27. Qd1) 25... Qxd1 {[%emt 0:02:19] The position is equal.} 26. Raxd1 {[%emt 0:00:06]} Bxe4 {[%emt 0:00:08]} ({Don't do} 26... Bb4 27. Nd6 $16) 27. Rxe4 {[%emt 0:00:06]} g5 {[%emt 0:02:50]} 28. Be3 {[%emt 0:17:56]} f5 {[%emt 0:07:49]} 29. Red4 {[%emt 0:00:04]} f4 {[%emt 0:03:03]} 30. Bd2 {[%emt 0:00:06]} Rxe5 {[%emt 0:00:51]} 31. Kf1 {[%emt 0:00:43]} Re6 {[%emt 0:07:39]} 32. Be1 {[%emt 0:03:04]} Kf7 {[%emt 0:00:37]} 33. a4 {[%emt 0:01:14]} bxa4 {[%emt 0:01:39]} 34. bxa4 {[%emt 0:00:59]} Be7 {[%emt 0:01:17]} 35. g3 {[%emt 0:05:54]} fxg3 {[%emt 0:01:14]} 36. fxg3 {[%emt 0:00:05]} Rc2 {[%emt 0:03:24] [#] aiming for ...Rf6+.} 37. R1d2 {[%emt 0:00:52]} Rxd2 {[%emt 0:01:34]} 38. Bxd2 {[%emt 0:00:07] Weighted Error Value: White=0.05 (flawless) /Black=0.04 (flawless)} 1/2-1/2

[Event "ESP-chT Honor Division 2022"]
[Site "Linares"]
[Date "2022.09.23"]
[Round "7.14"]
[White "Gukesh D"]
[Black "Santos Latasa, Jaime"]
[Result "1-0"]
[ECO "D41"]
[WhiteElo "2726"]
[BlackElo "2680"]
[Annotator "TA"]
[PlyCount "129"]
[EventDate "2022.09.17"]
[EventType "team-tourn"]
[EventCountry "ESP"]
[SourceTitle "playchess.com"]
[Source "ChessBase"]
[SourceQuality "1"]
[TimeControl "5400+30"]

{[%evp 14,129,21,25,14,17,68,63,44,62,60,36,49,47,49,37,29,27,31,40,30,35,38,41,51,33,38,47,50,46,45,45,56,63,67,51,50,43,70,67,77,67,68,63,79,73,90,88,86,79,88,88,88,87,88,88,88,87,88,26,23,0,88,88,86,56,67,51,112,96,106,93,233,233,233,233,233,233,233,233,233,233,233,233,233,8,8,8,8,8,8,10,10,0,0,0,0,0,0,0,0,0,0,0,0,0,0,0,908,874,1843,1822,29968,29969,29983,29984,29985,29986]} 1. d4 {[%emt 0:00:45]} Nf6 {[%emt 0:00:08]} 2. c4 {[%emt 0:00:55]} e6 {[%emt 0:00:06][%cal Be7e6,Be6d5][%mdl 32]} 3. Nf3 {[%emt 0:01:09]} d5 {[%emt 0:00:09]} 4. Nc3 {[%emt 0:00:32]} c5 {[%emt 0:00:05]} 5. cxd5 {[%emt 0:01:23]} cxd4 {[%emt 0:00:06]} 6. Qxd4 {[%emt 0:00:45]} exd5 {[%emt 0:00:06]} 7. Bg5 {[%emt 0:01:48]} Be7 {[%emt 0:00:15]} 8. e3 {[%emt 0:00:16]} O-O {[%emt 0:00:07] The main line 8...0-0 scores better than 8...Nc6. D50: Queen's Gambit Declined: Dutch-Peruvian Gambit.} 9. Rd1 {[%emt 0:01:46] [#]} h6 $146 {[%emt 0:01:47]} (9... Be6 $11) ({Predecessor:} 9... Be6 10. Bd3 h6 11. Bh4 Nc6 12. Qa4 Qb6 13. Rd2 Rfd8 14. O-O Rac8 15. Rfd1 Kf8 16. Bb5 {½-½ (65) Mamedyarov,S (2757)-So,W (2771) Saint Louis 2022}) 10. Bxf6 $14 {[%emt 0:05:06] White is much more active.} Bxf6 {[%emt 0:00:17] White is slightly better.} 11. Qxd5 {[%emt 0:00:07]} Qb6 {[%emt 0:03:07]} 12. Qb5 {[%emt 0:11:28]} Bxc3+ {[%emt 0:01:42]} 13. bxc3 {[%emt 0:00:06]} Be6 {[%emt 0:00:14]} 14. Nd4 {[%emt 0:12:26]} Qxb5 {[%emt 0:05:24]} 15. Nxb5 {[%emt 0:00:06]} Rc8 {[%emt 0:00:46] Inhibits Nc7.} 16. Rd2 {[%emt 0:03:51][%cal Bd1d2,Bd2c2,Bc2c1][%mdl 32]} Nc6 {[%emt 0:01:51]} 17. Be2 {[%emt 0:07:00]} Ne5 {[%emt 0:05:10]} 18. Rc2 {[%emt 0:02:59]} Bf5 {[%emt 0:03:41]} 19. Rc1 {[%emt 0:00:36] aiming for Nd6.} Nd3+ {[%emt 0:01:56]} 20. Bxd3 {[%emt 0:00:08]} Bxd3 {[%emt 0:00:05]} 21. Nd4 {[%emt 0:00:33]} Rc5 {[%emt 0:00:16]} 22. Kd2 {[%emt 0:00:31]} Bc4 {[%emt 0:00:06]} 23. a3 {[%emt 0:04:42]} Rac8 {[%emt 0:02:32]} 24. f3 {[%emt 0:00:55]} Kf8 {[%emt 0:01:32]} 25. e4 {[%emt 0:00:56]} b6 {[%emt 0:00:10]} 26. Kc2 {[%emt 0:04:55]} Bb5 {[%emt 0:01:41]} 27. Kb3 {[%emt 0:00:51]} Bd7 {[%emt 0:00:12]} 28. Rhd1 {[%emt 0:00:57]} Ke8 {[%emt 0:00:16]} 29. Rd3 {[%emt 0:01:02]} Rc4 {[%emt 0:00:40]} 30. Kb2 {[%emt 0:00:24]} R4c5 {[%emt 0:00:13]} 31. Rcd1 {[%emt 0:05:32]} R8c7 {[%emt 0:00:30]} 32. Re3 {[%emt 0:02:43]} h5 {[%emt 0:04:40]} 33. g3 {[%emt 0:02:59]} g6 {[%emt 0:00:28]} 34. Nb3 {[%emt 0:02:30]} R5c6 {[%emt 0:02:04]} 35. Rd5 {[%emt 0:01:02]} Ke7 {[%emt 0:00:42]} 36. Nd4 {[%emt 0:01:18]} (36. h4 $16) 36... Rc5 $11 {[%emt 0:00:39]} 37. Nb3 {[%emt 0:08:20]} R5c6 {[%emt 0:06:33]} (37... Rxd5 $11 {remains equal.} 38. exd5+ Kd6) 38. f4 {[%emt 0:03:00][%cal Bf3f4,Bf4f5,Bf5f6][%mdl 32]} Rc4 {[%emt 0:00:49]} 39. f5 {[%emt 0:04:51]} R4c6 {[%emt 0:02:42]} 40. h3 {[%emt 0:00:38]} Bc8 {[%emt 0:02:42]} (40... Rd6 $14) 41. g4 {[%emt 0:00:46]} hxg4 {[%emt 0:00:06]} 42. hxg4 {[%emt 0:00:03]} Ba6 {[%emt 0:02:10]} (42... Rd6 $16) 43. g5 $18 {[%emt 0:02:41]} ({Don't do} 43. Nd4 Rc5 $16) 43... Rd6 {[%emt 0:01:12]} 44. f6+ {[%emt 0:02:19]} Kd7 {[%emt 0:00:06]} 45. Rxd6+ {[%emt 0:00:10]} Kxd6 {[%emt 0:00:05][%mdl 4096] Endgame KRB-KRN} 46. e5+ $1 {[%emt 0:00:01]} Kd5 {[%emt 0:00:08]} 47. e6 $1 {[%emt 0:02:39]} fxe6 {[%emt 0:00:09]} 48. Nd4 $1 {[%emt 0:00:05]} e5 {[%emt 0:03:36] [#]} 49. Nf3 {[%emt 0:00:01]} ({Only move:} 49. Nf5 $1 $18 {[%cal Rf5e7][%mdl 512] Threatens to win with Ne7+.} Bb5 (49... gxf5 50. g6) 50. Ne7+ Rxe7 51. fxe7) 49... e4 $11 {[%emt 0:01:10]} 50. Nh4 {[%emt 0:00:01]} Rh7 $1 {[%emt 0:00:51]} 51. Nxg6 {[%emt 0:00:51] Strongly threatening Ne7+.} Rh2+ {[%emt 0:00:04]} 52. Kc1 {[%emt 0:00:02]} Rf2 {[%emt 0:00:17]} 53. Nh8 {[%emt 0:02:16] And now f7 would win.} Bc4 {[%emt 0:03:24]} 54. f7 {[%emt 0:01:49]} Rf1+ {[%emt 0:00:53]} 55. Kd2 {[%emt 0:00:01][%cal Oe3e2] Black must now prevent Re2!} Rf2+ {[%emt 0:00:06]} 56. Ke1 {[%emt 0:00:04]} Rf1+ {[%emt 0:00:05]} 57. Kd2 {[%emt 0:00:03]} Rf2+ {[%emt 0:00:04]} 58. Kd1 {[%emt 0:00:59]} Rf1+ {[%emt 0:00:06]} 59. Re1 {[%emt 0:00:57] White threatens Rxf1 and mate.} e3 $1 {[%emt 0:00:03] Hoping for ...Ke4.} 60. Kc2 {[%emt 0:00:45]} e2 {[%emt 0:06:30][%mdl 8192]} (60... Rf2+ $11 61. Kc1 Ke4) 61. Kd2 $18 {[%emt 0:00:56]} (61. g6 {is a self mate.} Rxe1 62. f8=Q {[#]} Rc1+ $3 {[%mdl 512]} 63. Kxc1 e1=Q+ 64. Kc2 Qe2+ 65. Kc1 Qe3+ 66. Kc2 Qd3+ 67. Kc1 Qxc3+ 68. Kd1 Qd3+ 69. Kc1 Qe3+ 70. Kc2 Bd3+ 71. Kc3 Bxg6+ 72. Kb4 Qe4+ 73. Kb3 Qc2+ 74. Kb4 Qc4#) 61... Ke6 {[%emt 0:00:05]} 62. Rxe2+ ({Inferior is} 62. g6 Rxe1 63. Kxe1 Ke7 $11) 62... Bxe2 {[%emt 0:00:24]} 63. Kxe2 {[%emt 0:01:06] White mates.} Rf5 {[%emt 0:02:36]} 64. g6 {[%emt 0:00:05][%cal Bg5g6,Bg6g7][%mdl 32]} Ke7 {[%emt 0:00:56]} 65. g7 {[%emt 0:00:07] Weighted Error Value: White=0.09 (flawless) /Black=0.22 (precise)} 1-0

[Event "ESP-chT Honor Division 2022"]
[Site "Linares"]
[Date "2022.09.23"]
[Round "7.15"]
[White "Pichot, Alan"]
[Black "Santos Ruiz, Miguel"]
[Result "1/2-1/2"]
[ECO "C65"]
[WhiteElo "2641"]
[BlackElo "2581"]
[Annotator "TA"]
[PlyCount "60"]
[EventDate "2022.09.17"]
[EventType "team-tourn"]
[EventCountry "ESP"]
[SourceTitle "playchess.com"]
[Source "ChessBase"]
[SourceQuality "1"]
[TimeControl "5400+30"]

{[%evp 9,60,19,21,14,10,10,10,8,10,8,20,15,16,14,20,19,20,15,25,12,8,10,17,8,16,17,19,16,18,16,24,5,7,-8,-1,-36,0,0,0,0,0,0,0,0,0,-12,-9,-13,0,0,0,0,-4]} 1. e4 {[%emt 0:00:04]} e5 {[%emt 0:00:02]} 2. Nf3 {[%emt 0:00:09]} Nc6 {[%emt 0:00:04]} 3. Bb5 {[%emt 0:00:08]} Nf6 {[%emt 0:00:04]} 4. d3 {[%emt 0:00:24][%cal Bd2d3,Bd3d4][%mdl 32]} Bc5 {[%emt 0:00:05]} 5. Bxc6 {[%emt 0:00:27]} dxc6 {[%emt 0:00:04]} 6. O-O {[%emt 0:00:10] C65: Ruy Lopez: Berlin Defence (3...Nf6), unusual lines and 4 0-0 Bc5.} Nd7 {[%emt 0:00:08]} 7. c3 {[%emt 0:00:52]} O-O {[%emt 0:01:41]} 8. d4 {[%emt 0:00:23]} Bd6 {[%emt 0:00:24]} 9. Bg5 {[%emt 0:00:18][%cal Bc1g5,Bg5h4,Bh4g3,Bg3d6,Bd6c7,Bc7b6,Bb6e3][%mdl 32]} f6 {[%emt 0:00:16] 9...f6 is better than 9...Qe8.} 10. Bh4 {[%emt 0:00:06]} Qe8 {[%emt 0:01:36]} 11. Nbd2 {[%emt 0:02:31]} Qf7 {[%emt 0:00:43]} 12. Bg3 {[%emt 0:02:10]} Re8 {[%emt 0:05:07]} 13. Qc2 {[%emt 0:03:47]} a5 {[%emt 0:07:23]} 14. b3 {[%emt 0:05:51]} exd4 {[%emt 0:07:12] [#]} (14... a4 {is more complex.} 15. Rfb1 b6 16. Nc4 Ba6) 15. Bxd6 $146 {[%emt 0:09:31]} (15. cxd4 {is interesting.} Nb6 16. Bxd6 cxd6 17. a4) ({Predecessor:} 15. cxd4 Bxg3 16. hxg3 Nb6 17. a4 Bg4 18. Rfe1 h6 19. Re3 Re7 20. Rae1 Rae8 21. Qc3 {0-1 (32) Giri,A (2776)-So,W (2770) chess24.com INT 2021}) 15... dxc3 {[%emt 0:01:29]} 16. Bxc7 {[%emt 0:03:46]} cxd2 {[%emt 0:00:19]} 17. Nxd2 {[%emt 0:00:05]} Nf8 {[%emt 0:14:54]} 18. Bb6 {[%emt 0:05:07]} Be6 {[%emt 0:02:04]} 19. f4 {[%emt 0:00:36]} Nd7 {[%emt 0:00:44]} 20. Be3 {[%emt 0:01:13]} Qe7 {[%emt 0:00:45]} 21. a3 {[%emt 0:11:30] [#]} Bd5 $1 {[%emt 0:03:47][%cal Rd5e4]} 22. Rad1 {[%emt 0:00:58][%cal Ba1d1,Bd1d7,Bd7b7][%mdl 32]} (22. Rfd1 c5) 22... Bxe4 {[%emt 0:02:26]} (22... Nf8 {seems wilder.} 23. Bc5 Bxe4 24. Qc4+ Bd5) 23. Qxe4 {[%emt 0:00:29] The position is equal.} Qxe4 {[%emt 0:00:04]} 24. Nxe4 {[%emt 0:00:06]} Rxe4 {[%emt 0:00:03]} 25. Rxd7 {[%emt 0:00:06] [#] Bb6 is the strong threat.} Rxe3 {[%emt 0:00:04]} 26. Rxb7 $15 {[%emt 0:00:07] KRR-KRR} Rd8 {[%emt 0:06:03] Against Rd1} 27. Rf3 {[%emt 0:02:46]} Rxf3 {[%emt 0:00:56]} 28. gxf3 {[%emt 0:00:05]} Rd3 {[%emt 0:00:12]} 29. Kg2 {[%emt 0:00:50]} a4 {[%emt 0:00:08]} 30. bxa4 {[%emt 0:00:04]} Rxa3 {[%emt 0:00:04] A balanced but interesting game.  Weighted Error Value: White=0.04 (flawless) /Black=0.03 (flawless)} 1/2-1/2

[Event "ESP-chT Honor Division 2022"]
[Site "Linares"]
[Date "2022.09.23"]
[Round "7.16"]
[White "Muzychuk, Anna"]
[Black "Perez Candelario, Manuel"]
[Result "1-0"]
[ECO "B40"]
[WhiteElo "2526"]
[BlackElo "2566"]
[Annotator "TA"]
[PlyCount "77"]
[EventDate "2022.09.17"]
[EventType "team-tourn"]
[EventCountry "ESP"]
[SourceTitle "playchess.com"]
[Source "ChessBase"]
[SourceQuality "1"]
[TimeControl "5400+30"]

{[%evp 25,77,17,36,10,16,5,5,6,5,0,0,0,0,0,6,16,40,28,28,37,41,32,110,98,102,102,96,93,98,100,262,252,252,244,262,264,256,263,276,265,262,251,308,256,333,329,509,268,256,200,557,193,1634,175]} 1. e4 c5 {[%emt 0:00:04]} 2. Nf3 {[%emt 0:00:18][%cal Bg1f3,Bf3d4,Bd4b5,Bb5c3,Bc3e2][%mdl 32]} e6 {[%emt 0:00:04]} 3. d4 {[%emt 0:00:39]} cxd4 {[%emt 0:00:05]} 4. Nxd4 {[%emt 0:00:03]} Nf6 {[%emt 0:00:06]} 5. Nc3 {[%emt 0:00:13]} Nc6 {[%emt 0:00:05]} 6. Ndb5 {[%emt 0:03:57]} Bb4 {[%emt 0:00:06]} 7. a3 {[%emt 0:00:28]} Bxc3+ {[%emt 0:00:05]} 8. Nxc3 {[%emt 0:00:04]} d5 {[%emt 0:00:09]} 9. exd5 {[%emt 0:00:50]} exd5 {[%emt 0:00:07]} 10. Bd3 {[%emt 0:00:09]} O-O {[%emt 0:00:13]} 11. O-O {[%emt 0:00:06]} d4 {[%emt 0:00:08]} 12. Ne2 {[%emt 0:02:08]} Bg4 {[%emt 0:00:06]} 13. f3 {[%emt 0:09:14] 13.Bg5 is the hot move.} Bh5 $1 {[%emt 0:00:21]} 14. Nf4 {[%emt 0:04:49] B45: Sicilian Four Knights.} Bg6 {[%emt 0:00:05]} 15. Nxg6 {[%emt 0:01:18]} hxg6 {[%emt 0:00:05]} 16. f4 {[%emt 0:02:26] The position is equal.} Qb6 {[%emt 0:00:15]} 17. b4 {[%emt 0:05:25]} Ne7 {[%emt 0:06:55]} 18. Qf3 {[%emt 0:04:01]} Nf5 {[%emt 0:07:34]} 19. Bd2 {[%emt 0:09:20]} Rac8 {[%emt 0:11:33]} 20. Rae1 {[%emt 0:10:00] [#] Prevents Ne3.} Rfd8 $146 {[%emt 0:13:54]} ({Predecessor:} 20... Qc6 21. Re5 Qxf3 22. Rxf3 Rfe8 23. Rxe8+ Rxe8 24. Bxf5 gxf5 25. Rd3 Rc8 26. c3 dxc3 27. Bxc3 {½-½ (36) Aagaard,J (2431)-Khenkin,I (2587) Stockholm 2004}) 21. g4 {[%emt 0:08:14][%cal Bg2g4,Bg4g5][%mdl 32]} Ne3 {[%emt 0:10:20]} 22. Bxe3 {[%emt 0:01:25]} dxe3 {[%emt 0:00:05]} 23. g5 $1 {[%emt 0:23:28]} Nh5 {[%emt 0:12:50]} (23... e2+ 24. Rf2 Nd5 25. Rexe2 $16) (23... Nd5 $14) 24. Qxe3 {[%emt 0:02:11]} Rd4 {[%emt 0:00:09] [#]} 25. f5 $1 {[%emt 0:03:39]} Nf4 {[%emt 0:08:41]} 26. fxg6 {[%emt 0:04:08]} fxg6 {[%emt 0:00:12]} 27. Be4 {[%emt 0:04:27]} Nd5 {[%emt 0:09:18] Loses the game.} (27... Rxe4 $16 28. Qxb6 Ne2+ 29. Rxe2 Rg4+ 30. Rg2 Rxg2+ 31. Kxg2 axb6) 28. Qf2 $18 {[%emt 0:00:27]} Nc3 {[%emt 0:04:43]} 29. Bd3 {[%emt 0:00:21] Threatens to win with Qf7+.} ({Resist} 29. Bg2 Rg4 30. Kh1 (30. Re3 Nd5 $14) 30... Qxf2 31. Rxf2 Rxg5 32. Bxb7 Rb8 $18) ({But not} 29. Qf7+ $2 Kh8 30. Qxb7 {[#]} Nxe4 $1 31. Qxb6 axb6 $19) 29... Rg4+ {[%emt 0:10:32]} 30. Kh1 {[%emt 0:00:00] Black must now prevent Qf7+.} Qc6+ {[%emt 0:01:46]} 31. Qf3 {[%emt 0:00:01] Dancing on a razor blade.} Rxg5 {[%emt 0:02:42]} 32. Qxc6 {[%emt 0:00:45]} bxc6 {[%emt 0:00:03]} 33. Re7 {[%emt 0:00:16]} Nd5 {[%emt 0:01:39]} 34. Rxa7 {[%emt 0:01:17]} Nf6 {[%emt 0:01:26]} 35. a4 {[%emt 0:01:06]} Rd8 {[%emt 0:00:50]} (35... Rg4 {was worth a try.} 36. b5 cxb5 37. axb5 Rb4) 36. b5 {[%emt 0:00:18]} cxb5 {[%emt 0:00:09]} 37. axb5 {[%emt 0:00:02] Strongly threatening b6.} Rd4 $2 {[%emt 0:00:34]} (37... Rxd3 {is a better chance.} 38. cxd3 Rxb5) 38. Raa1 $2 {[%emt 0:01:02]} (38. b6) 38... Nd5 $2 {[%emt 0:00:56]} (38... Rxd3 39. cxd3 Rxb5) 39. Ra8+ {[%emt 0:00:18] Weighted Error Value: White=0.32/Black=0.40} 1-0

[Event "ESP-chT Honor Division 2022"]
[Site "Linares"]
[Date "2022.09.23"]
[Round "7.17"]
[White "Stefanova, Antoaneta"]
[Black "Korneev, Oleg"]
[Result "0-1"]
[ECO "D10"]
[WhiteElo "2472"]
[BlackElo "2460"]
[Annotator "TA"]
[PlyCount "94"]
[EventDate "2022.09.17"]
[EventType "team-tourn"]
[EventCountry "ESP"]
[SourceTitle "playchess.com"]
[Source "ChessBase"]
[SourceQuality "1"]
[TimeControl "5400+30"]

{[%evp 23,94,14,23,21,19,16,13,14,31,32,38,33,39,32,58,34,31,34,37,18,23,25,20,10,40,39,39,39,42,41,61,28,41,41,42,0,13,0,0,0,0,0,0,0,0,0,0,0,0,0,0,0,0,0,0,0,0,0,0,-38,-33,-42,-46,-103,-89,-29984,-29985,-29991,-7517,-29997,-29998,-29998,-29999]} 1. d4 {[%emt 0:00:07]} d5 {[%emt 0:01:10]} 2. c4 {[%emt 0:02:01]} c6 {[%emt 0:00:02]} 3. cxd5 {[%emt 0:04:38]} cxd5 {[%emt 0:00:16]} 4. Bf4 {[%emt 0:01:00]} Nc6 {[%emt 0:00:02]} 5. e3 {[%emt 0:04:25]} Nf6 {[%emt 0:00:07]} 6. Nc3 {[%emt 0:00:26]} a6 {[%emt 0:00:04]} 7. Bd3 {[%emt 0:03:31]} Bg4 {[%emt 0:00:18]} 8. Nge2 {[%emt 0:01:37]} e6 {[%emt 0:00:08]} 9. Rc1 {[%emt 0:03:23]} Bd6 {[%emt 0:13:08]} 10. f3 {[%emt 0:04:50]} Bh5 {[%emt 0:00:59]} 11. O-O {[%emt 0:09:45]} O-O {[%emt 0:02:12]} 12. Bxd6 {[%emt 0:02:10]} Qxd6 {[%emt 0:00:23]} 13. Nf4 {[%emt 0:00:43] D10: Slav Defence: 3 cxd5 (without early Nf3) and 3 Nc3.} Bg6 {[%emt 0:00:12]} 14. Bxg6 {[%emt 0:01:46]} hxg6 {[%emt 0:01:19]} 15. Nd3 {[%emt 0:01:16] The position is equal.} e5 {[%emt 0:06:31]} 16. dxe5 {[%emt 0:02:07]} Nxe5 {[%emt 0:00:10]} 17. Nxe5 {[%emt 0:00:28]} Qxe5 {[%emt 0:00:03]} 18. Qd4 {[%emt 0:00:41]} Qe6 {[%emt 0:03:42] [#]} 19. Na4 $146 {[%emt 0:07:13]} ({Predecessor:} 19. Rfe1 Rac8 20. Ne2 Rfe8 21. Rxc8 Rxc8 22. Rc1 Rxc1+ 23. Nxc1 Qc6 24. Qd2 Qc4 25. a3 {½-½ (62) Cramling,P (2507)-Goryachkina,A (2423) Khanty-Mansiysk 2014}) 19... Rac8 {[%emt 0:02:51]} 20. Nc5 {[%emt 0:14:42]} Qe7 {[%emt 0:02:56]} 21. Rc3 {[%emt 0:08:09]} Rc6 {[%emt 0:20:08]} 22. Rfc1 {[%emt 0:00:12]} Rfc8 {[%emt 0:00:13]} 23. Kf2 {[%emt 0:01:25]} a5 {[%emt 0:05:20]} 24. Nd3 {[%emt 0:02:49]} Rxc3 {[%emt 0:15:49]} 25. Rxc3 {[%emt 0:00:04]} Rxc3 {[%emt 0:01:13]} 26. Qxc3 $14 {[%emt 0:00:08][%mdl 4096] Endgame KQN-KQN} ({And not} 26. bxc3 Qa3 27. Kg3 Qxa2 $17) 26... Qd8 {[%emt 0:00:57]} 27. h4 {[%emt 0:06:28]} Nd7 {[%emt 0:03:16]} 28. g3 {[%emt 0:02:05]} Nf8 {[%emt 0:00:06]} 29. Qb3 {[%emt 0:04:59]} Qd7 {[%emt 0:14:19]} 30. Nf4 {[%emt 0:03:35]} d4 {[%emt 0:00:10]} 31. e4 {[%emt 0:01:35]} Ne6 {[%emt 0:00:02]} 32. Nxe6 {[%emt 0:02:33]} fxe6 $11 {[%emt 0:00:05][%cal Bf7e6,Be6e5][%mdl 32] KQ-KQ} 33. Ke2 {[%emt 0:00:17]} Kh8 {[%emt 0:04:17]} 34. f4 {[%emt 0:00:36]} Qc7 {[%emt 0:04:01]} 35. Kd3 {[%emt 0:02:10]} e5 $1 {[%emt 0:00:02]} 36. Qc4 {[%emt 0:03:31]} Qd6 {[%emt 0:01:18]} 37. Qf7 {[%emt 0:00:14]} Qa6+ {[%emt 0:00:14]} 38. Kd2 {[%emt 0:00:22] Threatens to win with Qe8+.} Qb5 {[%emt 0:00:51] Against Qe8+} 39. Qb3 {[%emt 0:01:11]} Qf1 {[%emt 0:00:11]} 40. fxe5 {[%emt 0:00:33]} Qf2+ {[%emt 0:00:04]} 41. Kd3 {[%emt 0:00:36]} Qe3+ {[%emt 0:00:25]} (41... b5 {keeps more tension.} 42. e6 a4 43. Qa3 Qe3+) 42. Kc2 $1 {[%emt 0:00:31] And now Qxe3 would win.} Qxe4+ {[%emt 0:01:13]} 43. Qd3 {[%emt 0:00:13]} (43. Kd2 $1 $15) 43... Qxe5 $17 {[%emt 0:00:01]} 44. Qxg6 $2 {[%emt 0:00:44][%mdl 8192] [#] Loses the game.} (44. a4 $17) 44... Qe2+ {[%emt 0:00:06]} 45. Kb3 {[%emt 0:00:15]} d3 {[%emt 0:00:26]} (45... b5 $142 46. Qe8+ Qxe8 47. a3 Qe2 48. Ka2 d3 49. Kb1 d2 50. g4 d1=Q+ 51. Ka2 Qe6+ 52. b3 Qexb3#) 46. g4 {[%emt 0:00:22]} Qc2+ $1 {[%emt 0:00:31]} 47. Ka3 {[%emt 0:00:05]} Qc5+ {[%emt 0:00:02] Weighted Error Value: White=0.46/Black=0.19 (very precise)} 0-1